bitfinex-derivatives/quotes_ETHF0:USTF0_20260113
["timestamp","ask_amount","ask_price","bid_price","bid_amount"]
[1768326618550,0.00471039,3187.4,3186.2,0.14280035]
[1768326618858,0.00471039,3187.4,3186.2,0.29981035]
[1768326619058,0.00471039,3187.4,3186.3,0.14280035]
[1768326619252,0.00471039,3187.4,3186.3,1.35133402]
[1768326619445,0.00471039,3187.4,3186.4,0.14280035]
[1768326619848,0.00226729,3187.6,3186.7,0.14280035]
[1768326620647,1.482,3188.2,3186.7,0.14280035]
[1768326621456,0.14311967,3187.6,3186.6,0.00471039]
[1768326621761,0.1469644,3187.6,3186.6,0.00471039]
[1768326623054,0.00384473,3187.6,3186.6,0.00471039]
[1768326624164,0.1469644,3187.6,3186.6,0.00471039]
[1768326624756,0.1469644,3187.6,3185.8,0.00363307]
[1768326624757,0.14311967,3187.3,3185.8,0.00363307]
[1768326624960,0.14311967,3187.0,3185.8,0.00363307]
[1768326625460,0.14311967,3186.7,3185.8,0.00363307]
[1768326625757,0.14311967,3186.4,3184.6,3.85220334]
[1768326625961,0.14311967,3186.4,3184.9,1.05152367]
[1768326626355,0.14311967,3186.4,3184.9,1.20860367]
[1768326626760,0.14311967,3186.4,3185.0,0.15707]
[1768326626958,0.14311967,3186.4,3185.1,1.05152367]
[1768326628256,0.14311967,3186.8,3185.1,1.05152367]
[1768326629456,0.14311967,3186.8,3185.0,0.15707]
[1768326631259,0.14311967,3186.6,3185.0,0.15707]
[1768326634065,0.14311967,3186.6,3185.0,1.20859367]
[1768326634266,1.48,3186.5,3185.0,1.20859367]
[1768326635075,3.141,3186.9,3185.3,1.05152367]
[1768326635266,3.141,3186.9,3185.6,1.05152367]
[1768326636666,0.13547583,3187.1,3185.6,1.05152367]
[1768326637371,0.13547583,3187.1,3185.6,1.20856367]
[1768326637563,1.61547583,3187.1,3185.6,1.20856367]
[1768326638465,1.61547583,3187.1,3185.7,2.565]
[1768326639868,1.48,3187.1,3185.9,1.05152367]
[1768326640069,0.13547583,3187.5,3185.9,1.20855367]
[1768326640265,1.48,3187.4,3185.9,1.20855367]
[1768326641265,1.61547583,3187.4,3185.9,1.20855367]
[1768326642062,0.13547583,3187.3,3185.9,0.15703]
[1768326643672,0.00471039,3186.9,3185.9,0.15703]
[1768326645277,0.00471039,3186.9,3186.1,0.15702]
[1768326645464,0.13547583,3187.9,3186.5,0.157]
[1768326645669,0.13547583,3187.9,3186.2,0.13413074]
[1768326645876,0.13547583,3188.3,3186.7,0.15699]
[1768326646077,1.61447583,3188.3,3186.7,0.15699]
[1768326650274,0.13547583,3188.3,3186.2,0.13413074]
[1768326650473,1.61347583,3188.7,3187.1,0.15697]
[1768326650675,0.13547583,3188.7,3187.2,0.15697]
[1768326651277,0.13857066,3188.7,3187.2,0.15697]
[1768326651582,0.13857066,3188.7,3187.6,0.00471039]
[1768326653680,0.00309483,3188.7,3187.6,0.00471039]
[1768326658691,0.13857066,3188.7,3187.6,0.00471039]
[1768326659078,0.13857066,3188.7,3187.6,2.56971039]
[1768326662475,0.13547583,3188.5,3187.6,2.56971039]
[1768326662880,1.476,3188.4,3187.6,2.56971039]
[1768326664079,1.61147583,3188.4,3187.6,2.56971039]
[1768326664886,1.61147583,3188.4,3187.6,0.00471039]
[1768326665381,0.13547583,3188.4,3187.6,0.00471039]
[1768326665580,0.00309483,3188.7,3187.9,1.05082802]
[1768326665787,0.00309483,3188.7,3187.7,1.05082802]
[1768326666089,0.13569859,3188.7,3187.6,0.00471039]
[1768326666288,0.13260376,3188.5,3187.6,0.00471039]
[1768326667189,1.18343178,3188.4,3187.6,0.00471039]
[1768326667889,1.18343178,3188.2,3187.6,0.00471039]
[1768326668183,0.13260376,3188.1,3187.6,0.00471039]
[1768326670587,0.13260376,3188.5,3187.6,0.00471039]
[1768326671386,1.47709483,3188.7,3187.6,0.00471039]
[1768326671784,0.00309483,3188.7,3187.6,0.00471039]
[1768326672188,0.00309483,3188.7,3187.6,0.16166039]
[1768326672386,0.00309483,3188.7,3187.6,0.00471039]
[1768326672986,0.00309483,3188.7,3187.7,0.15694]
[1768326674095,0.00309483,3188.7,3187.8,0.15694]
[1768326674390,0.13569859,3188.7,3187.6,0.00471039]
[1768326675587,1.60660376,3188.6,3187.6,0.00471039]
[1768326676096,0.00309483,3188.7,3187.6,0.00471039]
[1768326678087,0.13779025,3188.7,3187.6,0.00471039]
[1768326680891,0.13779025,3188.7,3187.2,0.00293891]
[1768326680892,0.13469542,3188.3,3187.2,0.00293891]
[1768326683399,0.13469542,3188.1,3187.2,0.00293891]
[1768326685908,0.13469542,3188.6,3187.2,0.00293891]
[1768326686394,1.60669542,3188.6,3187.3,0.15696]
[1768326686886,1.60669542,3188.6,3187.2,0.00293891]
[1768326686887,0.13469542,3188.5,3187.2,0.00293891]
[1768326689602,0.13469542,3188.5,3187.3,0.15696]
[1768326691304,0.13469542,3188.5,3187.3,3.77278182]
[1768326691305,0.13469542,3188.4,3187.3,3.77278182]
[1768326692510,0.00309483,3188.7,3188.0,1.05082182]
[1768326692696,0.00309483,3188.7,3187.2,1.05376073]
[1768326692697,0.00309483,3188.7,3188.2,1.05082182]
[1768326692897,0.13469542,3189.2,3188.4,1.05082182]
[1768326693091,0.13469542,3189.2,3188.2,1.05082182]
[1768326693298,1.18551724,3189.2,3188.0,1.20775182]
[1768326693899,1.18869571,3189.2,3188.0,1.20775182]
[1768326694404,0.13787389,3189.2,3188.2,1.05082182]
[1768326697309,1.18869571,3189.2,3188.1,1.05082182]
[1768326697512,1.18869571,3189.2,3188.0,0.15693]
[1768326698009,1.18869571,3189.2,3188.1,1.05082182]
[1768326698809,0.1395578,3189.1,3188.1,1.05082182]
[1768326699707,0.1395578,3189.1,3188.0,0.15693]
[1768326699909,0.1395578,3189.1,3187.5,0.15695]
[1768326700107,0.1395578,3189.1,3187.8,1.05082182]
[1768326700108,0.1395578,3188.7,3187.8,1.05082182]
[1768326700415,0.1395578,3188.7,3188.0,1.05082182]
[1768326700605,1.05082182,3189.0,3188.0,1.05082182]
[1768326701002,0.14273627,3189.2,3188.0,0.15692]
[1768326701207,1.61273627,3189.2,3188.4,1.05082182]
[1768326701504,0.14273627,3189.2,3188.4,1.05082182]
[1768326701701,0.14273627,3189.2,3188.0,0.15692]
[1768326701901,0.14273627,3189.2,3188.3,1.05082182]
[1768326702318,0.00317847,3189.2,3188.7,1.05082182]
[1768326702507,0.1395578,3189.7,3188.7,1.05082182]
[1768326702811,0.1395578,3189.7,3188.5,1.05082182]
[1768326703212,1.05082182,3189.6,3188.5,1.05082182]
[1768326703516,0.0040411,3189.6,3188.5,1.05082182]
[1768326703712,0.01561898,3189.1,3188.5,1.05082182]
[1768326704608,0.0040411,3189.6,3188.9,1.05082182]
[1768326704806,0.0040411,3189.6,3188.7,1.05082182]
[1768326705516,0.1395578,3190.1,3189.1,1.05082182]
[1768326706219,0.1395578,3190.1,3189.0,1.05082182]
[1768326706418,0.14234426,3190.1,3189.0,1.05082182]
[1768326707014,0.14234426,3190.1,3187.8,3.91983028]
[1768326707015,0.00278646,3190.1,3189.2,1.05082182]
[1768326708610,0.00278646,3190.1,3189.0,1.05082182]
[1768326708922,1.05082182,3190.0,3189.0,1.05082182]
[1768326709223,0.14234426,3190.1,3189.0,1.05082182]
[1768326710227,1.05082182,3190.0,3188.8,0.15688]
[1768326710517,1.05082182,3189.1,3187.8,3.85150149]
[1768326710721,1.19037962,3189.1,3188.0,1.05082182]
[1768326710921,1.19037962,3189.1,3188.2,1.05082182]
[1768326710922,0.1395578,3189.1,3188.2,1.05082182]
[1768326711120,1.468,3189.4,3188.4,1.05082182]
[1768326711322,1.468,3189.4,3188.0,0.15693]
[1768326712925,1.6075578,3189.4,3188.0,0.15693]
[1768326713129,0.1395578,3189.3,3188.0,0.15693]
[1768326714617,0.1395578,3189.3,3188.1,2.565]
[1768326715527,1.6075578,3189.7,3188.1,2.565]
[1768326715721,0.1395578,3189.6,3188.2,2.565]
[1768326716519,1.6065578,3189.6,3188.2,2.565]
[1768326716921,0.1395578,3189.5,3188.2,2.565]
[1768326717632,1.6065578,3189.5,3188.2,2.565]
[1768326718231,0.1395578,3189.4,3188.2,2.565]
[1768326720734,0.1395578,3189.4,3188.0,0.15693]
[1768326721728,0.1395578,3189.1,3187.5,2.80067967]
[1768326721934,0.15687,3189.2,3187.2,0.00293891]
[1768326721935,0.1395578,3188.9,3187.2,0.00293891]
[1768326725023,0.2964378,3188.9,3187.2,0.00293891]
[1768326725224,0.13504994,3188.8,3187.2,0.00293891]
[1768326727940,0.29193994,3188.8,3187.2,0.00293891]
[1768326728131,0.13504994,3188.7,3187.2,0.00293891]
[1768326730839,1.60204994,3188.6,3187.2,0.00293891]
[1768326731039,0.13504994,3188.5,3187.2,0.00293891]
[1768326734048,0.13504994,3188.1,3187.2,0.00293891]
[1768326734353,0.13504994,3187.7,3186.4,0.157]
[1768326734851,0.13504994,3187.7,3185.9,2.565]
[1768326735147,0.13504994,3187.7,3186.0,1.05094653]
[1768326735338,0.13880118,3187.7,3186.1,0.15702]
[1768326735539,0.13880118,3187.7,3186.2,0.15702]
[1768326737241,0.13880118,3187.7,3186.3,0.15701]
[1768326739139,0.00375124,3187.7,3186.5,0.157]
[1768326739345,0.00375124,3187.7,3186.6,0.157]
[1768326739742,0.14601579,3187.7,3185.9,0.00309531]
[1768326740342,0.14601579,3187.7,3186.4,0.15701]
[1768326741744,0.00375124,3187.7,3186.4,0.15701]
[1768326744954,0.00375124,3187.7,3186.6,0.15699]
[1768326745155,0.14226455,3188.6,3186.8,0.15699]
[1768326745355,0.14226455,3188.6,3187.0,0.15698]
[1768326746450,0.14449095,3188.6,3186.4,0.157]
[1768326748057,0.14449095,3188.6,3186.5,0.157]
[1768326748258,0.14226455,3188.4,3186.5,0.157]
[1768326749157,0.14226455,3188.4,3186.6,0.157]
[1768326749358,0.14226455,3188.4,3186.3,0.13173865]
[1768326749561,0.14226455,3188.4,3186.9,0.15698]
[1768326753863,0.14226455,3188.4,3187.0,0.15698]
[1768326754262,0.14226455,3188.4,3187.1,0.15697]
[1768326758769,0.14226455,3188.4,3187.1,2.72197]
[1768326759165,1.05083855,3187.6,3186.7,2.565]
[1768326759368,1.19649098,3187.6,3186.0,2.72203]
[1768326759670,1.19649098,3187.3,3186.0,0.15703]
[1768326759973,0.15035536,3187.1,3186.5,0.00470293]
[1768326760464,0.15035536,3187.1,3186.0,0.15703]
[1768326761764,0.00470293,3187.1,3186.0,0.15703]
[1768326765867,0.00470293,3187.1,3185.9,1.05393386]
[1768326766169,0.00470293,3187.1,3186.2,1.05083855]
[1768326766373,0.14565243,3187.9,3186.5,1.05083855]
[1768326766977,0.14565243,3188.5,3186.8,1.05083855]
[1768326767170,0.14565243,3188.5,3186.8,3.61583855]
[1768326767371,0.14565243,3188.5,3186.8,2.565]
[1768326768266,0.14565243,3188.4,3186.8,2.565]
[1768326768577,0.15035536,3188.0,3186.8,2.565]
[1768326769479,0.15035536,3188.0,3187.1,0.00470293]
[1768326773676,0.15035536,3188.0,3186.6,0.15699]
[1768326774487,0.15035536,3188.0,3186.4,2.565]
[1768326774488,0.00470293,3188.0,3186.5,0.13635167]
[1768326774688,0.00470293,3188.0,3187.0,0.15697]
[1768326776691,0.00470293,3188.0,3187.1,0.15697]
[1768326779297,0.00470293,3188.0,3187.1,2.72197]
[1768326781989,3.1422264,3188.6,3187.3,0.15696]
[1768326783103,0.14565243,3188.5,3187.3,0.15696]
[1768326783596,0.0022264,3188.6,3187.5,0.15695]
[1768326783900,0.0022264,3188.6,3187.5,2.72195]
[1768326785299,0.00470293,3188.4,3187.5,2.72195]
[1768326787899,0.00470293,3188.4,3187.6,2.565]
[1768326791504,0.00470293,3188.4,3187.6,3.61564465]
[1768326795306,1.05064465,3188.2,3187.6,2.565]
[1768326795514,0.14547815,3188.3,3187.6,2.565]
[1768326795709,1.05064465,3188.2,3187.6,2.565]
[1768326796708,1.05064465,3188.0,3187.6,2.565]
[1768326796912,1.18840296,3188.2,3187.6,2.565]
[1768326797097,0.00470293,3188.4,3188.0,1.05064465]
[1768326797300,0.13775831,3189.1,3188.0,1.05064465]
[1768326797510,1.18840296,3189.5,3188.4,1.05064465]
[1768326797705,0.13775831,3189.5,3188.4,1.05064465]
[1768326797908,1.59575831,3189.5,3188.4,1.05064465]
[1768326798317,1.05064465,3189.4,3188.4,0.00240582]
[1768326800720,1.05064465,3189.2,3188.4,0.00240582]
[1768326800915,0.13775831,3188.7,3188.4,0.00240582]
[1768326801115,0.00237925,3189.5,3188.0,1.05064465]
[1768326801116,1.18840296,3189.1,3188.0,1.05064465]
[1768326801424,0.13775831,3189.1,3188.0,1.05064465]
[1768326802222,0.13775831,3189.1,3188.0,1.05459664]
[1768326802613,1.05064465,3189.0,3188.0,1.05459664]
[1768326806216,1.05064465,3188.8,3188.0,0.00395199]
[1768326806428,1.18840296,3188.4,3188.0,0.00395199]
[1768326806632,0.13775831,3188.4,3187.7,0.15694]
[1768326806816,0.13775831,3188.4,3187.5,0.00470293]
[1768326807014,1.18840296,3188.4,3187.5,0.00470293]
[1768326807429,0.13775831,3188.4,3187.5,0.00470293]
[1768326807727,0.13775831,3188.4,3187.5,0.00831773]
[1768326808727,0.13775831,3189.0,3187.5,0.00831773]
[1768326810724,0.13775831,3189.0,3187.5,0.16526773]
[1768326812322,1.456,3188.9,3187.5,0.16526773]
[1768326814122,0.15685,3189.6,3187.6,0.15695]
[1768326814123,0.13775831,3189.4,3187.6,0.15695]
[1768326814430,0.13775831,3189.2,3187.6,0.15695]
[1768326815219,4.75086,3189.3,3187.5,0.00831773]
[1768326815220,0.13581678,3188.9,3187.5,0.00831773]
[1768326816125,0.13581678,3188.5,3187.5,0.00831773]
[1768326816532,0.13581678,3188.4,3186.6,2.80067967]
[1768326816733,0.13581678,3187.7,3186.3,2.80067967]
[1768326817031,0.13581678,3187.6,3186.0,0.15702]
[1768326817430,0.13581678,3187.6,3186.0,1.53683407]
[1768326817634,1.455,3187.5,3186.0,1.53917553]
[1768326817932,0.13581678,3187.4,3186.2,0.15701]
[1768326822727,0.13581678,3187.4,3186.0,0.00234146]
[1768326823937,0.13581678,3187.2,3186.0,0.00234146]
[1768326824136,0.13868579,3187.2,3186.0,0.00234146]
[1768326829636,0.13581678,3187.0,3186.0,0.00234146]
[1768326831734,0.13581678,3186.9,3185.3,2.565]
[1768326831923,0.13581678,3186.9,3185.4,2.565]
[1768326832743,1.454,3186.8,3185.6,0.15704]
[1768326832931,0.00470293,3186.5,3185.6,0.15704]
[1768326833234,1.39386901,3187.2,3185.4,0.14014656]
[1768326833437,1.39386901,3187.2,3185.9,0.00470293]
[1768326833829,0.00286901,3187.2,3185.9,0.00470293]
[1768326835530,0.00286901,3187.2,3186.1,0.15702]
[1768326835734,0.13868579,3187.2,3186.1,0.15702]
[1768326837436,0.13868579,3187.2,3185.9,0.00470293]
[1768326839939,1.59168579,3187.2,3185.9,0.00470293]
[1768326841442,0.13868579,3187.2,3185.9,0.00470293]
[1768326841648,0.13868579,3187.2,3186.0,0.15702]
[1768326842046,0.00286901,3187.2,3186.1,0.15702]
[1768326842748,0.00286901,3187.2,3185.9,0.00470293]
[1768326843049,0.00286901,3187.2,3185.9,8.70549289]
[1768326843547,0.00286901,3187.2,3186.4,0.157]
[1768326843745,0.00286901,3187.2,3186.5,0.157]
[1768326843944,0.13581678,3187.7,3186.5,0.157]
[1768326844143,0.13581678,3187.7,3186.6,0.15699]
[1768326844842,0.13821527,3187.7,3186.6,0.15699]
[1768326845646,0.13821527,3187.7,3186.0,0.15702]
[1768326846640,0.13821527,3187.7,3186.1,0.15702]
[1768326846835,1.452,3187.6,3186.1,0.15702]
[1768326847038,1.59021527,3187.7,3185.9,2.8053826]
[1768326847236,1.59021527,3187.7,3186.3,0.15701]
[1768326849652,0.14206345,3187.6,3186.3,0.15701]
[1768326850455,0.14206345,3187.6,3186.4,0.15701]
[1768326851348,0.00239849,3187.7,3186.5,0.157]
[1768326852546,0.00239849,3187.7,3186.1,0.13066633]
[1768326852750,0.00239849,3187.7,3186.2,2.80067967]
[1768326853152,0.00239849,3187.7,3186.7,0.15699]
[1768326854852,0.00239849,3187.7,3186.3,0.130579]
[1768326855660,0.00239849,3187.7,3186.9,0.15698]
[1768326857462,0.13442579,3187.7,3186.9,0.15698]
[1768326863258,0.00239849,3187.7,3186.9,0.15698]
[1768326870567,0.00239849,3187.7,3187.0,0.15698]
[1768326870768,1.5800273,3188.4,3187.1,0.15697]
[1768326871161,0.1320273,3188.3,3187.1,0.15697]
[1768326871767,0.13579119,3188.3,3187.1,0.15697]
[1768326873066,0.13579119,3188.3,3186.9,2.565]
[1768326873067,1.05109007,3188.1,3186.9,2.565]
[1768326873264,0.1320273,3188.0,3186.9,2.565]
[1768326875970,0.1320273,3188.0,3186.7,2.72199]
[1768326876566,0.1320273,3188.0,3186.9,0.15698]
[1768326876760,0.00376389,3188.3,3186.7,2.565]
[1768326876960,0.00376389,3188.3,3187.1,0.15697]
[1768326877166,0.15027835,3188.3,3187.1,0.15697]
[1768326877761,0.14651446,3188.0,3186.7,0.15699]
[1768326878270,0.14651446,3188.0,3186.8,0.15699]
[1768326884374,0.15027835,3188.3,3187.1,0.15697]
[1768326886974,0.14651446,3188.2,3187.1,0.15697]
[1768326892765,0.00376389,3188.3,3187.1,0.15697]
[1768326893975,0.15027835,3188.3,3187.1,0.15697]
[1768326894571,0.00376389,3188.3,3187.1,0.15697]
[1768326896277,0.00376389,3188.3,3187.3,0.15696]
[1768326896481,0.14651446,3189.1,3187.5,1.20804007]
[1768326896673,1.445,3189.0,3187.5,1.20804007]
[1768326896983,1.59151446,3189.0,3187.5,1.20804007]
[1768326897372,1.59151446,3189.0,3187.9,0.00470293]
[1768326897677,1.59151446,3189.0,3187.9,0.00876091]
[1768326897678,0.14968901,3189.0,3187.9,0.00876091]
[1768326898072,0.00317455,3189.0,3187.9,0.00876091]
[1768326898269,0.00317455,3189.0,3188.1,1.20801007]
[1768326898473,0.14968901,3189.0,3188.1,0.15692]
[1768326899579,0.14968901,3189.0,3187.9,0.00876091]
[1768326900684,0.14651446,3188.5,3187.9,0.00876091]
[1768326900983,0.14651446,3188.5,3187.5,0.15695]
[1768326901184,0.00470293,3188.5,3187.5,0.15695]
[1768326901876,0.00470293,3188.5,3187.5,0.1598725]
[1768326902573,0.15121739,3188.5,3187.5,0.1598725]
[1768326902975,0.00470293,3188.5,3187.5,0.1598725]
[1768326905384,0.00470293,3188.5,3187.5,1.21057868]
[1768326906083,0.00470293,3188.5,3187.7,1.05070618]
[1768326906881,0.00470293,3188.5,3187.5,1.21057868]
[1768326907185,0.13965684,3188.4,3187.5,0.0029225]
[1768326907382,1.05070618,3187.7,3186.9,0.15698]
[1768326908382,1.05070618,3187.7,3186.9,0.1599693]
[1768326909087,0.13965684,3188.4,3186.9,1.21067548]
[1768326909284,1.05070618,3188.0,3186.9,1.21067548]
[1768326909487,1.05070618,3188.2,3187.1,1.05070618]
[1768326910080,0.13965684,3188.4,3187.3,1.05070618]
[1768326910388,0.00470293,3188.5,3187.5,1.05070618]
[1768326910986,0.00470293,3188.5,3187.7,1.05070618]
[1768326911392,0.00470293,3188.5,3187.2,1.05070618]
[1768326911393,0.00470293,3188.5,3187.9,1.05070618]
[1768326911893,0.13965684,3188.8,3187.9,1.05540911]
[1768326912095,1.05388073,3189.0,3187.9,1.05540911]
[1768326912594,1.05070618,3188.8,3187.9,0.00470293]
[1768326913491,1.05388073,3189.0,3187.9,1.05540911]
[1768326913691,0.00317455,3189.0,3187.9,1.05540911]
[1768326913991,0.00317455,3189.0,3187.9,0.00470293]
[1768326913992,1.05388073,3189.0,3187.9,0.00470293]
[1768326914296,1.05070618,3188.8,3187.9,0.00470293]
[1768326915198,1.05388073,3189.0,3187.9,0.00470293]
[1768326915395,1.05070618,3188.8,3187.9,0.00470293]
[1768326916496,0.13558718,3188.3,3187.9,0.00470293]
[1768326916700,0.13558718,3188.3,3187.3,1.05070618]
[1768326917801,1.05070618,3188.0,3187.2,0.15697]
[1768326918101,1.05070618,3188.0,3186.9,0.0029893]
[1768326918102,1.05070618,3187.4,3186.9,0.0029893]
[1768326918399,0.13558718,3187.9,3186.9,0.0029893]
[1768326918400,1.05070618,3187.6,3186.9,0.0029893]
[1768326918702,0.13558718,3186.9,3185.9,0.15703]
[1768326918998,0.13558718,3186.9,3185.9,1.05070618]
[1768326919706,0.00470293,3186.7,3186.3,1.05070618]
[1768326919897,0.13558718,3187.4,3186.3,1.05070618]
[1768326920400,1.05070618,3187.3,3186.2,0.00470293]
[1768326921205,1.05356815,3187.3,3186.2,0.00470293]
[1768326921502,0.00286197,3187.3,3186.2,0.00470293]
[1768326923002,0.13844915,3187.3,3186.2,0.00470293]
[1768326930195,1.53795663,3186.7,3185.9,0.00243216]
[1768326930399,0.13558718,3186.6,3184.7,0.15709]
[1768326930603,1.53795663,3186.7,3184.7,0.15709]
[1768326930604,0.13558718,3186.4,3184.7,0.15709]
[1768326931006,0.13558718,3186.4,3184.8,0.15708]
[1768326931308,0.13558718,3186.4,3184.9,0.15708]
[1768326931701,0.13558718,3186.4,3185.1,0.15707]
[1768326932111,0.13558718,3187.1,3185.4,0.15705]
[1768326932304,1.441,3187.0,3185.4,0.15705]
[1768326932807,0.13558718,3186.9,3185.4,0.15705]
[1768326937410,0.14328139,3186.4,3184.9,0.15708]
[1768326937610,0.14328139,3186.2,3184.8,0.00260897]
[1768326937910,0.983,3186.4,3184.8,0.00260897]
[1768326938107,0.14328139,3184.8,3182.2,0.13829256]
[1768326938307,40.8,3185.1,3182.2,0.13829256]
[1768326938308,1.53795663,3184.1,3182.2,0.13829256]
[1768326938504,1.44,3184.0,3182.6,0.13829256]
[1768326938902,1.53795663,3185.0,3182.6,0.13829256]
[1768326939111,0.00270169,3185.0,3182.6,0.1404926]
[1768326939308,0.00270169,3185.0,3182.8,0.13829256]
[1768326939514,4.581,3184.9,3182.8,0.13829256]
[1768326939813,0.00270169,3185.0,3182.8,0.13829256]
[1768326940111,4.581,3184.9,3182.8,0.13829256]
[1768326940502,1.53795663,3184.7,3182.8,0.13829256]
[1768326942015,0.00270169,3185.0,3182.8,0.29547256]
[1768326942219,4.581,3184.9,3182.9,0.13829256]
[1768326942913,0.00270169,3185.0,3183.0,0.15717]
[1768326943119,4.582,3184.9,3183.2,0.13829256]
[1768326943614,1.44,3184.8,3183.2,0.13829256]
[1768326947124,0.00270169,3185.0,3183.3,0.13829256]
[1768326947423,1.439,3184.9,3183.3,0.13829256]
[1768326948120,1.439,3184.9,3183.3,0.29545256]
[1768326948322,0.00471054,3184.4,3183.4,0.13829256]
[1768326952633,1.53795663,3184.3,3182.8,0.13829256]
[1768326952936,1.53795663,3183.9,3182.6,0.00220004]
[1768326953133,3.564,3183.8,3182.6,0.00220004]
[1768326954730,3.143,3183.7,3182.6,0.1404926]
[1768326954927,1.53795663,3184.3,3182.6,0.1404926]
[1768326955237,4.582,3184.2,3182.6,0.1404926]
[1768326955734,1.53795663,3184.3,3182.6,0.2976826]
[1768326955926,4.582,3184.2,3182.7,0.13829256]
[1768326960341,1.438,3184.1,3182.8,0.13829256]
[1768326961039,1.438,3184.1,3182.8,0.29547256]
[1768326961346,1.53795663,3183.9,3182.8,0.13829256]
[1768326961945,1.53795663,3183.9,3182.7,2.565]
[1768326962444,1.53795663,3183.9,3182.6,0.00220004]
[1768326962445,1.53795663,3183.5,3182.6,0.00220004]
[1768326962642,1.438,3183.4,3182.6,0.00220004]
[1768326963247,3.143,3183.7,3182.6,0.1404926]
[1768326963441,1.438,3183.6,3182.6,0.1404926]
[1768326967541,1.438,3183.6,3182.6,0.00220004]
[1768326972548,1.59515,3183.6,3182.6,0.00220004]
[1768326972746,0.15715,3183.4,3181.8,0.13238173]
[1768326972949,0.15715,3183.4,3181.8,2.69738173]
[1768326973149,1.74711093,3183.5,3181.8,2.69738173]
[1768326973350,0.15716,3183.2,3181.3,0.15726]
[1768326973546,1.87986377,3182.8,3180.3,6.36]
[1768326973851,4.581,3182.7,3181.0,0.15727]
[1768326974246,1.437,3182.6,3181.4,0.15725]
[1768326974443,0.15715,3183.5,3180.5,2.80067967]
[1768326974647,6.454,3183.6,3180.5,2.80067967]
[1768326974648,3.144,3183.4,3180.9,1.74711093]
[1768326974953,0.0035689,3183.4,3181.4,1.74711093]
[1768326975554,0.0035689,3183.4,3181.5,0.13238173]
[1768326976451,0.0035689,3183.4,3182.4,0.14332189]
[1768326977852,0.00471054,3183.2,3182.4,0.14332189]
[1768326980261,0.00471054,3183.2,3181.9,0.14332189]
[1768326981553,3.144,3183.1,3181.4,0.14332189]
[1768326981758,1.436,3183.0,3181.4,0.14332189]
[1768326984863,0.00471054,3183.2,3181.4,0.14332189]
[1768326985063,1.44071054,3183.2,3181.8,0.14332189]
[1768326985258,0.00471054,3183.2,3181.8,0.14332189]
[1768326985458,1.44071054,3183.2,3181.8,0.14332189]
[1768326986253,0.00471054,3183.2,3181.8,0.14332189]
[1768326986466,0.00471054,3183.2,3182.5,0.14332189]
[1768326989776,0.00471054,3183.2,3182.0,0.14332189]
[1768326991372,0.00471054,3183.2,3181.8,0.15723]
[1768326991674,0.00471054,3183.2,3181.5,0.14332189]
[1768326991971,0.00471054,3183.2,3181.5,0.30057189]
[1768326993168,0.00471054,3183.2,3181.5,0.15725]
[1768326993369,0.00471054,3183.2,3181.6,0.14332189]
[1768326993564,0.00471054,3183.2,3181.6,0.30056189]
[1768326993764,3.14871054,3183.2,3181.6,0.30056189]
[1768326994971,4.58371054,3183.2,3181.7,0.13811165]
[1768326996762,4.74088054,3183.2,3181.7,0.13811165]
[1768326996968,4.87703907,3183.2,3181.2,0.13811165]
[1768326997278,0.13615853,3183.1,3181.2,0.13811165]
[1768326997469,0.13615853,3183.1,3181.2,0.29537165]
[1768326997871,0.13615853,3183.1,3181.3,0.15726]
[1768326998172,0.13615853,3183.1,3181.3,0.29537165]
[1768327002375,0.13615853,3183.1,3181.4,0.13811165]
[1768327006486,0.16188054,3183.2,3181.5,0.13811165]
[1768327006686,4.578,3183.1,3181.6,0.13811165]
[1768327009587,0.16188054,3183.2,3181.6,0.13811165]
[1768327009884,0.00471054,3183.2,3181.8,0.13811165]
[1768327010272,0.00471054,3183.2,3181.8,0.29534165]
[1768327010476,1.433,3183.1,3181.9,0.13811165]
[1768327011381,0.00471054,3183.2,3181.9,0.29534165]
[1768327011589,1.43771054,3183.2,3182.1,0.13811165]
[1768327012685,1.43771054,3183.2,3182.0,0.15722]
[1768327012686,0.00471054,3183.2,3182.3,0.13811165]
[1768327012881,0.00471054,3183.2,3182.6,0.15719]
[1768327013082,1.433,3184.0,3182.7,0.13811165]
[1768327013482,1.432,3184.1,3182.8,0.13811165]
[1768327013676,1.432,3184.2,3182.9,0.13811165]
[1768327013989,0.00355995,3184.2,3183.0,0.13811165]
[1768327016994,0.00355995,3184.2,3183.1,0.29528165]
[1768327017198,0.00355995,3184.2,3183.2,0.13811165]
[1768327028000,1.54114183,3184.0,3182.7,0.2983049]
[1768327028196,2.97114183,3184.0,3182.7,0.1411149]
[1768327028397,2.97114183,3184.0,3182.9,0.1411149]
[1768327028696,0.00355995,3184.2,3183.0,0.2982849]
[1768327028898,0.00355995,3184.2,3183.1,0.1411149]
[1768327029105,0.00355995,3184.2,3183.2,0.1411149]
[1768327029408,1.05370506,3184.0,3183.2,0.1411149]
[1768327030204,0.00355995,3184.2,3183.2,0.1411149]
[1768327030502,1.05726501,3184.2,3183.3,0.1411149]
[1768327031304,0.00355995,3184.2,3183.3,0.1411149]
[1768327034998,0.00355995,3184.2,3182.7,0.1411149]
[1768327037201,0.12987,3184.6,3182.8,0.14627745]
[1768327038196,0.12987,3184.6,3182.8,2.94695712]
[1768327038402,0.13360118,3184.6,3182.9,0.14627745]
[1768327040213,0.13360118,3184.6,3182.9,2.94695712]
[1768327040398,0.13360118,3184.6,3183.0,0.14627745]
[1768327040798,0.13360118,3184.6,3183.1,1.54092366]
[1768327041102,0.13360118,3184.6,3183.3,0.14627745]
[1768327045502,0.13360118,3184.6,3183.4,0.14627745]
[1768327045705,1.428,3185.4,3183.4,0.14627745]
[1768327045907,1.54092366,3185.3,3183.4,0.14627745]
[1768327046210,1.67322475,3185.3,3183.4,0.14627745]
[1768327046408,1.67322475,3185.3,3184.0,0.00471054]
[1768327046607,1.67589178,3185.3,3184.0,0.00471054]
[1768327049020,1.67322475,3184.9,3184.0,0.00471054]
[1768327051320,1.05336539,3184.5,3184.0,0.00471054]
[1768327054518,1.05336539,3184.6,3184.0,0.00471054]
[1768327055312,1.05336539,3184.4,3184.0,0.00471054]
[1768327055516,1.05336539,3184.4,3183.4,0.14627745]
[1768327059615,1.05336539,3184.2,3183.1,1.05336539]
[1768327060221,1.05336539,3184.0,3182.9,0.13679737]
[1768327060925,1.05336539,3183.6,3182.6,2.80416244]
[1768327061124,1.05336539,3183.6,3182.6,0.00348277]
[1768327061524,0.13724934,3184.3,3182.6,0.00348277]
[1768327061724,1.05336539,3183.8,3182.6,0.00348277]
[1768327062626,1.05336539,3183.6,3182.6,0.00348277]
[1768327063422,0.13724934,3184.3,3183.1,1.05336539]